{"text_format":"1","workbook":"xlsx","n_sheets":3,"sheets":["Antrag","Anlage 1","Anlage 2"],"not_rendered":{"charts":0,"images":3,"macros":0,"external_links":0,"defined_names":13,"comments":0,"pivot_tables":0},"unopened":[],"bounds":{"document_bytes":16777216,"sheet_cells":100000,"rows_first":2000,"rows_last":500,"rows_between":2000,"halvings":0,"cell_chars":16384,"cell_head_chars":4096},"cells_cut":0,"cells_raw":0,"read":"whole","date_system":"1900"}

{"sheet":"Antrag","index":0,"n_rows":320,"n_cols":12,"rows_kept":320,"cut":false,"hidden":false,"merged":[[7,7,7,8],[185,1,185,8],[186,1,186,8],[267,1,267,8],[278,1,278,8],[281,1,281,8],[287,1,287,9],[234,1,234,8],[248,1,248,8],[227,6,227,7],[286,1,286,8],[284,1,284,3],[284,5,284,8],[268,1,268,8],[276,1,276,8],[265,1,265,8],[239,1,239,6],[242,1,242,8],[236,2,236,5],[236,6,236,7],[238,1,238,8],[272,1,272,8],[261,1,261,8],[263,1,263,8],[240,1,240,8],[246,1,246,8],[254,1,254,8],[256,1,256,8],[260,1,260,8],[244,1,244,8],[252,1,252,8],[258,1,258,8],[250,1,250,8],[231,2,231,3],[191,1,191,8],[192,1,192,8],[230,1,230,8],[220,2,220,7],[31,1,31,5],[288,1,288,8],[279,1,279,8],[283,1,283,3],[282,5,283,8],[31,6,31,8],[86,3,86,8],[86,1,86,2],[224,1,224,8],[229,1,229,8],[226,1,226,8],[227,1,227,5],[131,1,131,7],[136,1,136,5],[134,6,134,7],[123,1,123,2],[197,1,197,5],[169,2,169,5],[274,1,274,8],[178,1,178,8],[290,0,290,8],[270,1,270,8],[59,3,59,8],[77,1,77,8],[74,5,74,8],[67,3,67,8],[105,1,105,8],[81,1,81,8],[103,1,103,8],[84,1,84,8],[73,5,73,8],[75,5,75,8],[235,1,235,8],[212,1,212,8],[225,1,225,8],[231,4,231,8],[218,1,218,9],[180,1,180,8],[215,1,215,8],[165,2,165,5],[98,3,98,8],[100,1,100,8],[123,3,123,7],[127,3,127,8],[28,3,28,8],[4,7,5,9],[27,3,27,8],[41,1,41,8],[47,1,47,8],[51,1,51,8],[79,2,79,8],[56,1,56,2],[56,3,56,8],[48,1,48,2],[29,3,29,8],[29,1,29,2],[35,3,35,7],[35,1,35,2],[34,1,34,8],[63,3,63,8],[75,3,75,4],[74,3,74,4],[73,3,73,4],[54,3,54,7],[49,1,49,2],[64,3,64,8],[53,3,53,6],[53,1,53,2],[3,7,3,9],[66,3,66,8],[62,1,62,8],[3,0,3,3],[4,0,4,3],[65,3,65,8],[7,1,7,5],[18,1,22,8],[26,3,26,8],[24,1,24,8],[9,2,12,7],[8,7,8,8],[14,1,14,8],[16,1,16,8],[60,3,60,8],[3,4,3,6],[33,1,33,2],[37,1,37,6],[39,1,39,6],[4,4,4,6],[25,3,25,8],[49,3,49,7],[48,3,48,6],[45,1,45,8],[149,1,149,7],[150,1,150,8],[172,1,172,8],[132,1,132,8],[197,6,197,7],[208,1,208,8],[165,6,165,8],[205,6,205,7],[182,1,182,8],[202,1,202,5],[194,1,194,8],[189,1,189,8],[195,1,195,5],[195,6,195,7],[143,6,143,7],[143,1,143,5],[138,1,138,5],[134,1,134,5],[141,1,141,5],[152,2,152,5],[152,6,152,8],[207,1,207,8],[184,1,184,8],[54,1,54,2],[108,1,108,2],[120,1,120,8],[83,1,83,9],[102,1,102,8],[110,1,110,8],[111,1,111,3],[112,3,112,8],[108,3,108,8],[113,2,113,8],[114,2,114,8],[88,1,88,9],[90,2,90,8],[93,2,93,8],[95,3,95,8],[91,2,91,8],[96,3,96,8],[99,3,99,8],[94,2,94,8],[115,2,115,8],[117,2,117,8],[118,2,118,8],[222,2,222,7],[210,1,210,8],[216,1,216,8],[204,6,204,7],[157,2,157,5],[157,6,157,8],[161,2,161,5],[161,6,161,8],[125,1,125,8],[128,1,128,2],[176,1,176,8],[128,3,128,8],[199,1,199,5],[199,6,199,7],[136,6,136,7],[153,6,153,8],[153,2,153,5],[174,1,174,9],[145,1,145,5],[169,6,169,8],[213,1,213,8],[183,1,183,8],[188,1,188,8],[205,1,205,5],[166,2,166,5],[166,6,166,8],[168,2,168,5],[168,6,168,8],[170,2,170,5],[170,6,170,8],[154,6,154,8],[154,2,154,5],[156,2,156,5],[156,6,156,8],[158,2,158,5],[158,6,158,8],[160,2,160,5],[160,6,160,8],[162,2,162,5],[162,6,162,8],[164,2,164,5],[164,6,164,8]]}
[]
[]
[]
[]
[null,null,null,null,null,null,null,"Europäische Union"]
[]
[]
[null,"Landeskreditbank Baden-Württemberg (L-Bank)\nBereich Finanzhilfen\nSchlossplatz 10\n76113 Karlsruhe",null,null,null,null,null,"per E-Mail an:\nesf-wirtschaft@mfw.bwl.de\n"]
[null,null,null,null,null,null,null,"Stand: August 2016"]
[null,null,"Antrag \nauf Gewährung eines Zuschusses \nnach dem Förderprogramm Fachkurse\nSchwerpunktlinie \nChance Berufliche Weiterbildung\naus Mitteln des Europäischen Sozialfonds, Ziel Investitionen in Wachstum und Beschäftigung"]
[]
[]
[]
[]
[null,"Spezifisches Ziel:\nA 5.1 - Stärkung der Wettbewerbsfähigkeit von Erwerbstätigen und mittelständischer Wirtschaft"]
[]
[null,"Aktenzeichen des Ministeriums für Wirtschaft, Arbeit und Wohnungsbau: 4305.85/5"]
[]
[null,"Wichtige Informationen zum Verfahren: \nDas Programm läuft höchstens solange, wie Mittel aus dem Europäischen Sozialfonds hierfür zur Verfügung stehen. Zuschüsse unter 10.000 € werden grundsätzlich nicht bewilligt. Der abrechenbare Höchstzuschuss pro Weiterbildungsträger und Jahr (12 Monate) liegt bei 300.000 Euro. Der Antrag ist rechtzeitig vor Kursbeginn bei der L-Bank, Bereich Finanzhilfen, Schlossplatz 10, 76113 Karlsruhe einzureichen und zusätzlich per E-Mail an esf-wirtschaft@mfw.bwl.de zu senden. Empfohlen wird, Kurse, die zwischen dem 01.09 und 31.08 des Folgejahres beginnen, in einem Antrag zusammenzufassen.\nDie L-Bank entscheidet über die Bewilligung des Zuschusses. Die Bearbeitung der Anträge erfolgt in der Reihenfolge der vollständigen Eingänge bei der L-Bank."]
[]
[]
[]
[]
[]
["1.","Antragsteller (Weiterbildungsträger)"]
["*)","Name"]
["*)","Straße, Hausnummer"]
["*)","PLZ, Ort"]
["*)","E-Mail"]
["*)","Webseite (soweit vorhanden)"]
[]
[null,"Kunden-Nummer der L-Bank    (falls bereits vorhanden)"]
[]
["2.","Antragsberechtigung"]
["2.1.","Sind Sie ein öffentlicher oder privater Weiterbildungsträger?\nAntragsberechtigte Veranstalter sind öffentliche und private Weiterbildungsträger, die mit ihrem beruflichen Weiterbildungsangebot schon mindestens 3 Jahre am Markt sind. Nicht antragsberechtigt sind die unter Nr. 2.2. genannten Einrichtungen."]
[null,"            Nein",null,"Falls \"Nein\", benötigen wir keine weiteren Angaben."]
[]
["*)","            Ja, des öffentlichen Rechts"]
[]
["*)","            Ja, des privaten Rechts"]
[]
[null,"      falls ja, wie lange sind Sie schon mit Ihrem beruflichen Weiterbildungsangebot am Markt?"]
[]
[null,null,null,null,"Jahre und",null,"Monate"]
[]
["2.2.","Handelt es sich bei Ihrer Einrichtung um:"]
[]
["►","eine öffentliche, private oder kirchliche Hochschule mit oder ohne staatliche Anerkennung oder um deren rechtlich unselbständigen Institute oder sonstigen rechtlich unselbständigen Einrichtungen?"]
[null,"            Ja",null,"Falls \"Ja\", benötigen wir keine weiteren Angaben."]
[null,"            Nein",null,"Falls \"Nein\", beantworten Sie bitte die nächste Frage."]
[]
["►","einen Weiterbildungsträger, über dessen Vermögen ein Insolvenzverfahren beantragt oder eröffnet worden ist?"]
[]
[null,"            Ja",null,"Falls \"Ja\", benötigen wir keine weiteren Angaben."]
[null,"            Nein",null,"Falls \"Nein\", beantworten Sie bitte die nächste Frage."]
[]
["*) 3.","Wirtschaftszweig:",null,"Bitte wählen Sie mithilfe des Dropdown die zutreffende Branche aus! "]
[]
["4.","Ort der Durchführung der Maßnahme"]
["*)","Straße, Hausnummer"]
["*)","PLZ, Ort"]
[]
["5.","Name der verantwortlichen Ansprechperson"]
["*)","Name"]
["*)","Vorname"]
["*)","Telefon"]
["*)","Telefax"]
["*)","E-Mail"]
[]
["6.","Ort der Ablage der Belege"]
[null,"         beim Antragsteller"]
[null,"         am Ort der Maßnahme"]
[null,"         an anderer Stelle, bitte Name und Anschrift angeben: "]
[null,null,null,"Name"]
[null,null,null,"Straße, Hausnummer"]
[null,null,null,"PLZ, Ort"]
[]
["7.","Zielgruppe\n"]
[]
[null,"►","Beschäftigte aus Unternehmen, deren Beschäftigungsort oder Wohnort in Baden-Württemberg liegt."]
[]
[null,"Hinweise:\n- Der Antragsteller stellt eigenverantwortlich sicher, dass alle geförderten Teilnehmer/innen, auch   \n  Selbstzahler/innen, der genannten Zielgruppe angehören.\n- Die spezielle Ausrichtung auf die spezifischen Bedarfe von geringqualifizierten Beschäftigten / \n  An- und Ungelernten wird anhand der Kursbeschreibung in Anlage 1 und Anlage 2 geprüft.\n- Nicht förderfähig sind Beschäftigte von Bund, Ländern und kommunalen Gebietskörperschaften. "]
[]
["8.","Angaben zu den beantragten Fachkursen \"Chance Berufliche Weiterbildung\""]
["8.1.","Sind die beantragten Kurse überbetriebliche Weiterbildungslehrgänge zur beruflichen Anpassungsfortbildung bzw. Vorbereitungskurse oder lernunterstützende Begleitungskurse zu/von beruflichen Fortbildungen, die speziell auf die spezifischen Bedarfe von geringqualifizierten Beschäftigten / An- und Ungelernten ausgerichtet sind und dem Erwerb, dem Erhalt oder der Erweiterung von beruflichen Kenntnissen, Fertigkeiten und Kompetenzen dienen (vgl. Merkblatt Nr. 2.1 und 2.2.)?"]
[null,"            Ja"]
[null,"            Nein",null,"Falls \"Nein\", ändern Sie bitte Ihren Antrag dahingehend, \ndass nur Kurse angegeben sind, welche die o.g. Voraussetzungen erfüllen."]
[]
["8.2.","Beantragte Fachkurse \"Chance Berufliche Weiterbildung\""]
[]
[null,"            ","Fachkurse in einfacher, leicht verständlicher Sprache (siehe Merkblatt Nr. 2.1)"]
[null,null,"Vermittlung und praktische Einübung von fachpraktischen Kenntnissen und Fertigkeiten sowie anwendungsbezogenen Fähigkeiten und Kompetenzen einschließlich der dazugehörigen Fachbegriffe/Fachsprache in einfacher, leicht verständlicher Sprache."]
[null,null,"und/oder"]
[null,"            ","Fachkurse \"Lernen lernen\" (siehe Merkblatt Nr. 2.2)"]
[]
[null,null,"            ","Vorbereitung auf berufliche Fortbildung (siehe Merkblatt Nr. 2.2.1)"]
[null,null,null,"Vorbereitung von geringqualifizierten Beschäftigten auf berufliche Fortbildungen durch Vermitteln und Einüben individuell geeigneter Lernstrategien und -techniken, Stärkung beruflich orientierter Kommunikationsfähigkeit, Vermitteln und Einüben beruflich orientierter EDV-Grundkenntnissen."]
[null,null,null,"oder"]
[null,null,"            ","Lernunterstützende Begleitung (siehe Merkblatt Nr. 2.2.2)"]
[null,null,null,"Lernunterstützende Begleitung von längerfristigen beruflichen Qualifizierungsmaßnahmen durch Förderung des Lernerfolgs mit geeigneten Lernmethoden und -instrumenten, Verstärkung der positiven Lernerfahrung und Ermöglichen eines konstruktiven Umgangs mit negativen Lernerfahrungen, lernpsychologische und pädagogische Hilfestellung. "]
[null,"Hinweis:\nDer Weiterbildungsträger stellt eigenverantwortlich sicher, dass nur Teilnehmende einen Zuschuss erhalten, die der förderfähigen Zielgruppe angehören."]
[]
[null,"Nicht gefördert werden:\n           - einzelbetrieblich ausgerichtete Kurse.\n           - Inhousekurse, soweit die Kurse nicht grundsätzlich überbetrieblich ausgerichtet sind, d.h. nicht auch   \n             Kursteilnehmer/innen aus anderen Unternehmen teilnehmen können.\n           - Kurse, die den Verkauf, den Vertrieb oder die Anwendung von eigenen Produkten schulen.\n           - Kurse, die im Rahmen des Projektaufrufs \"Alphabetisierung und Grundbildung\" des  \n             Kultusministeriums gefördert werden.   \n           - Studiengänge jeglicher Art, darunter fallen unter anderem berufsbegleitende \n             Studiengänge, beispielsweise ein Fernstudium, Abendstudium, Wochenendstudium sowie \n             berufsbegleitende Zusatz-, Aufbau- und Weiterbildungsstudiengänge.\n           - reine Sprachkurse jeglicher Art (Deutsch und Fremdsprachen).\n             Hinweis: Deutschkurse für den Beruf werden über das ESF-BAMF-Programm des Bundes angeboten   \n                           und sind deshalb nicht als Fachkurse förderfähig. Anderssprachige berufsbezogene \n                           Sprachkurse sind bei Vorliegen der Fördervoraussetzungen im allgemeinen \n                           Fachkursprogramm grundsätzlich förderfähig.\n           - Kurse zu persönlichen Arbeitstechniken wie zum Beispiel Zeit-, Selbst- und \n             Stressmanagement mit den im Merkblatt unter Ziffer 2.2 genannten Ausnahmen. Kurse, die \n             hauptsächlich der allgemeinen Persönlichkeitsentwicklung, der individuellen \n             Gesundheitsprävention, der Erholung, der Unterhaltung, der privaten Haushaltsführung, der \n             sportlichen und künstlerischen Betätigung oder der sonstigen allgemeinen Lebensführung \n             dienen.            "]
[null,"           - Kurse, in denen Inhalte oder Methoden oder die Technologie von L. Ron Hubbard angewandt, gelehrt \n              oder in sonstiger Weise verbreitet werden.\n           - Kurse, in denen menschenverachtendes, extremistisches oder sexistisches Gedankengut gelehrt \n             oder in sonstiger Weise verbreitet wird.         "]
[]
["8.3.","Bieten Sie ausschließlich Kurse an, die eine Veranstaltungsdauer von mindestens 8 und höchstens 240 Unterrichtseinheiten haben? \nHinweis: \nEine Unterrichtseinheit umfasst i.d.R. nicht weniger als 45 Minuten.\nBei Fachkursen, die als Blended Learning angeboten werden, gelten als Unterrichtseinheiten ausschließlich die Präsenzzeiten vor Ort. "]
[]
[null,"            Ja"]
[null,"            Nein",null,"Falls \"Nein\", ändern Sie bitte Ihren Antrag dahingehend, \ndass nur Kurse angegeben sind, welche die o.g. Voraussetzung erfüllen."]
[]
["8.4.","Sind Blended-Learning-Kurse im Antrag enthalten? "]
[null,"            Nein"]
[null,"            Ja"]
[null,null,"falls ja, bitte geben Sie die laufende Nummer der Anlagen an:"]
[null,"Anlage 1"]
[null,"Anlage 2"]
[]
[null,null,"falls nicht in der/den Kursbeschreibung(en) dargelegt: Warum wird Blended Learning für den Kursinhalt und die förderfähige Zielgruppe für geeignet gehalten?"]
[]
[]
["8.5.","Ist der jeweilige Kurs einzeln buchbar?\nHinweis: Ein modularer Kursaufbau ist zulässig, wobei grundsätzlich jedes Modul einzeln buchbar sein muss und in der Rechnung einzeln ausgewiesen."]
[]
[null,"            Ja"]
[null,"            Nein",null,"Falls \"Nein\", ändern Sie bitte Ihren Antrag dahingehend, \ndass nur Kurse angegeben sind, die einzeln buchbar sind."]
[]
["8.6.","Ist der jeweilige Fachkurs innerhalb eines Zeitraums von zwölf Monaten abgeschlossen?"]
[]
[null,"            Ja"]
[null,"            Nein",null,"Falls \"Nein\", ändern Sie bitte Ihren Antrag dahingehend, dass nur Kurse angegeben sind, die innerhalb eines Zeitraums von zwölf Monaten abgeschlossen sind."]
[]
[]
["9.","Finanzierung der Fachkurse"]
["9.1.","voraussichtliche Anzahl der Fachkursteilnehmer/innen:\nBitte füllen Sie hierzu die Anlage 1 (Fachkurse in einfacher, leicht verständlicher Sprache) und Anlage 2 (Fachkurse \"Lernen lernen\") aus. "]
[]
[null,"Anzahl Fachkursteilnehmer/innen Anlage 1"]
[]
[null,"Der Wert wird automatisch aus der ausgefüllten Anlage 1 (Fachkurse in einfacher, leicht verständlicher Sprache) übernommen.",null,null,null,null,{"$f":"'Anlage 1'!G163+'Anlage 1'!H163","v":0}]
[null,null,null,null,null,null,"männlich","weiblich"]
[null,"Zu Anlage 1: Bitte geben Sie hier die Anzahl der Kursteilnehmer/innen aufgeschlüsselt nach dem Geschlecht an (geschätzt):"]
[]
[]
[null,"Anzahl Fachkursteilnehmer/innen Anlage 2"]
[]
[null,"Der Wert wird automatisch aus der ausgefüllten Anlage 2 (Fachkurse \"Lernen lernen\") übernommen.",null,null,null,null,{"$f":"'Anlage 2'!G163+'Anlage 2'!H163","v":0}]
[null,null,null,null,null,null,"männlich","weiblich"]
[null,"Zu Anlage 2: Bitte geben Sie hier die Anzahl der Kursteilnehmer/innen aufgeschlüsselt nach dem Geschlecht an (geschätzt):"]
[]
[]
[]
["9.2.","Finanzierungsübersicht über die mit diesem Antrag beantragten Fachkurse:"]
[null,"Die Beträge werden automatisch aus den ausgefüllten Anlagen übernommen."]
[]
[null,null,"Zuschuss Anlage 1",null,null,null,{"$f":"'Anlage 1'!L163","v":0}]
[null,null,"Zuschuss Anlage 2",null,null,null,{"$f":"'Anlage 2'!L163","v":0}]
[null,null,"Zuschuss Summe: ",null,null,null,{"$f":"G153+G154","v":0}]
[]
[null,null,"davon ESF-Mittel Anlage 1",null,null,null,{"$f":"'Anlage 1'!L164","v":0}]
[null,null,"davon ESF-Mittel Anlage 2",null,null,null,{"$f":"'Anlage 2'!L164","v":0}]
[null,null,"ESF-Mittel Summe:",null,null,null,{"$f":"G157+G158","v":0}]
[]
[null,null,"davon Landesmittel des Ministeriums für Wirtschaft, Arbeit und Wohnungsbau Anlage 1",null,null,null,{"$f":"'Anlage 1'!L165","v":0}]
[null,null,"davon Landesmittel des Ministeriums für Wirtschaft, Arbeit und Wohnungsbau Anlage 2",null,null,null,{"$f":"'Anlage 2'!L165","v":0}]
[null,null,"Landesmittel Summe:",null,null,null,{"$f":"G161+G162","v":0}]
[]
[null," +   ","private Kofinanzierung (i.d.R.) Anlage 1",null,null,null,{"$f":"'Anlage 1'!L166","v":0}]
[null," +   ","private Kofinanzierung (i.d.R.) Anlage 2",null,null,null,{"$f":"'Anlage 2'!L166","v":0}]
[null,null,"Private Kofinanzierung Summe: ",null,null,null,{"$f":"G165+G166","v":0}]
[]
[null," =  ","Gesamtausgaben Anlage 1",null,null,null,{"$f":"'Anlage 1'!L167","v":0}]
[null," =  ","Gesamtausgaben Anlage 2",null,null,null,{"$f":"'Anlage 2'!L167","v":0}]
[null,null,"Gesamtausgaben Summe:",null,null,null,{"$f":"G169+G170","v":0}]
[]
[null,"Bitte beachten Sie, dass \n- die nicht über den Zuschuss gedeckten Teilnahmegebühren von den Teilnehmenden bzw. den \n  entsendenden Unternehmen/Einrichtungen oder sonstigen Dritten zu finanzieren sind;\n- ein Zuschuss unter 10.000 € grundsätzlich nicht bewilligt wird;\n- pro Weiterbildungsträger und Jahr (12 Monate) ein maximaler Zuschuss von 300.000 € \n  beantragt und abgerechnet werden kann;\n- Mehrwertsteuer und Übernachtungskosten nicht als Bestandteile der Teilnahmegebühr bezuschusst    \n  werden.  "]
[]
["9.3.","Überschneidet sich der in den Anlagen beantragten Zeiträume mit anderen Bewilligungen bzw. Anträgen für die Fachkursförderung?"]
[null,"Nein"]
[null,"Ja, dann stellen Sie für den sich überschneidenden Zeitraum einen Änderungsantrag."]
[]
["10.","Monitoring: Angaben zu den Teilnehmer-Stammblattdaten sowie Output- und  Ergebnisindikatoren\n"]
[]
[null,"Bitte beachten Sie, dass im Falle einer Bewilligung umfangreiche Pflichten auf Sie zu kommen, u.a. zur Erhebung von Daten über die Fachkursteilnehmer/innen. Des Weiteren sind Sie verpflichtet, an Monitoring- und Evaluationsmaßnahmen teilzunehmen sowie bei Prüfungen mitzuwirken. Die Erfüllung dieser Pflichten wird Ihnen nicht vergütet, die hierfür anfallenden Kosten dürfen auch nicht in irgendeiner Weise an die Fachkursteilnehmer/innen weitergegeben werden."]
[]
["10.1.","Teilnehmer/innen mit Stammblattdaten\n"]
[null,"Von allen Fachkursteilnehmer/innen sind umfangreiche personenbezogene Stammdaten zu erheben und elektronisch über das ZuMa-System der L-Bank zu erfassen und zu übermitteln. \nFür jede/n Fachkursteilnehmer/in ist während des Bewilligungszeitraumes (pro Bewilligung) einmal ein Stammblatt zu erfassen, das in der Regel mehrfach zu aktualisieren ist. Dies gilt auch, wenn Teilnehmer/innen an mehreren Fachkursen innerhalb eines Bewilligungszeitraumes teilnehmen. Es bleibt bei einem einzigen Stammblatt pro Teilnehmer/in.\nEs wird ausdrücklich begrüßt, wenn Teilnehmer/innen an mehreren Fachkursen innerhalb eines Bewilligungszeitraumes teilnehmen. "]
[null,"Hierfür finden Sie \n• den Teilnahmefragebogen\n• die Erläuterungen zur Datenerhebung\n• die Kontaktdaten-Tabelle sowie\n• weitere Unterlagen \nunter folgendem Link: \n"]
[null,"http://www.esf-bw.de/esf/foerderung-beantragen-und-umsetzen/foerderprogramme-des-foerderbereichs-wirtschaft/"]
[null,"\nDie Upload-Tabelle steht über das ZuMa-System der L-Bank zum Download bereit. Die Stammdaten der Teilnehmenden sind in der Upload-Tabelle zu erfassen und regelmäßig über ZuMa an die L-Bank zu übermitteln."]
[]
["*) 10.2.","Outputindikator: \"Erwerbstätige, auch Selbstständige\""]
[null,"Von allen Fachkursteilnehmer/innen, für die ein Stammblatt angelegt ist, zählen lediglich diejenigen, die erwerbstätig sind, auch zum Output.\nAls \"Erwerbstätige, auch Selbstständige\" im Sinne der ESF-Förderung gelten Personen, die einer bezahlten Tätigkeit nachgehen, also alle abhängig Beschäftigten (Arbeiter/-innen, Angestellte, betriebliche Auszubildende), unabhängig davon, ob sie sozialversicherungspflichtig oder geringfügig beschäftigt sind, und die nicht zeitgleich arbeitslos gemeldet sind sowie alle Selbständigen und mithelfenden Familienangehörigen. Nur \"Erwerbstätige, auch Selbstständige\", für die ein vollständiges Stammdatenblatt vorliegt, zählen in den Output. In der Schwerpunktlinie \"\"Chance Berufliche Weiterbildung\" zählen alle Teilnehmer/innen zum Output, die der förderfähigen Zielgruppe angehören und den Fachkurs nicht abbrechen.\n\nHinweis: \nSelbständige/Unternehmer(innen) sind in der Schwerpunktlinie \"Fachkurs - Chance Berufliche Weiterbildung\" nicht förderfähig!\n\nDer Outputindikator wird im Rahmen des Monitoring über die Angaben im Stammblatt zum Erwerbsstatus ermittelt. Eine zusätzliche Auswertung durch Sie ist nicht vorzunehmen. \n\n"]
[]
[null,"Beispiel für die Berechnung der Outputindikatoren:\n\nFörderfähige Teilnehmer/innen nach Nr. 9.1:\nNach Nr. 9.1 haben Sie beispielsweise voraussichtlich 400 förderfähige Teilnehmer/innen.\nDavon belegen 100 Teilnehmer/innen zwei oder mehr Kurse (Mehrfachteilnahmen).\n\nTeilnehmer/innen mit Stammblattdaten:\nDa pro Teilnehmer/innen nur ein einziges Stammblatt anzulegen ist (Mehrfachteilnahmen sind herauszurechnen), haben Sie 300 Teilnehmer/innen, für die ein Stammblatt anzulegen und über ZuMa zu übermitteln ist.\n\nAnzahl der Teilnehmer/innen, die in den Output zählen:\nIn den Output zählen nur erwerbstätige Teilnehmer/innen. \nIm Beispiel unterstellen wir, dass von allen über Stammblätter erfassten Teilnehmer/innen 95% den Status \"erwerbstätig\" aufweisen.\nDer Output liegt in diesem Beispiel somit bei 285 Teilnehmer/innen."]
[]
[]
[null,"Berechnung des Outputindikators: Wie viele in den Output zählende \"Erwerbstätige, auch Selbstständige\" werden voraussichtlich an den geplanten Fachkursen teilnehmen?"]
[null,"Anzahl der förderfähigen Fachkursteilnehmenden nach Nr. 9.1.\nDer Wert wird automatisch als Summe der übertragenen Werte aus den Anlagen 1 und 2 von Nr. 9.1. übernommen.",null,null,null,null,{"$f":"G137+G144","v":0}]
[]
[null,"geschätzte Anzahl an Teilnehmer/innen, die zwei oder mehr Fachkurse belegen:"]
[]
[null,"Anzahl Teilnehmender ohne Mehrfachteilnahmen = Teilnehmer/innen mit Stammblattdaten \n(berechnet sich aus den oben gemachten Angaben):",null,null,null,null,{"$f":"IF(G198=0,G196,G196-G198)","v":0}]
[]
[null,null,null,null,null,null,"männlich","weiblich"]
["*)","Output: geschätzte Anzahl der Kursteilnehmer/innen, die den Status \"erwerbstätig\" aufweisen, \naufgeschlüsselt nach dem Geschlecht:"]
[]
[null,null,null,null,null,null,"SOLL-Wert"]
[null,"Output: Summe geschätzte Anzahl der Kursteilnehmer/innen, die den Status \"erwerbstätig\" aufweisen (berechnet sich aus den oben gemachten Angaben):",null,null,null,null,{"$f":"G203+H203","v":0}]
[]
["*) 10.3.","Ergebnisindikator: \"Teilnehmer/-innen, die nach ihrer Teilnahme eine Qualifizierung erlangen.\""]
[null,"Der Ergebnisindikator wird im Rahmen des Monitoring über die Angaben in der Upload-Tabelle ermittelt. \nHierfür ist von Ihnen für jede/n Fachkursteilnehmer/in zum Zeitpunkt des Austritts aus der Maßnahme, also nach Kursende (bei mehreren Kursen nach Ende der letzten Kursteilnahme) im Stammblatt anzugeben, ob diese/r eine Qualifizierung (Lernergebnis) erzielt hat. Es muss keine Prüfung stattfinden, um ein Lernergebnis zu bescheinigen.\n\nErlangen einer Qualifizierung:\nEin/e Teilnehmer/in erlangt eine Qualifizierung, wenn ein Lernergebnis erzielt wurde. \nFür jede/n Teilnehmer/in, die/der eine Qualifizierung erlangt, ist zusätzlich ein Zertifikat im Sinne einer qualifizierten Teilnahmebescheinigung auszustellen, um mindestens das formale Ergebnis der Qualifizierung zu bescheinigen. Das bedeutet, dass mindestens ersichtlich sein müssen: Dauer des Fachkurses, Gegenstand (Titel) des Fachkurses und dass die / der Teilnehmer/ in alle Maßnahmebestandteile (Inhalte) des Fachkurses absolviert hat. Die qualifizierte Teilnahmebescheinigung bzw. eine Kopie davon muss auf Anforderung vorgelegt werden können.\n\nDer lt. operationellem Programm für den ESF anzustrebende Zielwert des Ergebnisindikators liegt bei 98%."]
[]
["11.","Querschnittsziele im ESF"]
[]
[null,"Im ESF werden die Themen Gleichstellung von Frauen und Männern, Chancengleichheit und Nichtdiskriminierung sowie ökologische Nachhaltigkeit als Querschnittsziele verfolgt. \nVor diesem Hintergrund sollen sich die Weiterbildungsveranstalter bei der didaktischen und organisatorischen Ausgestaltung von Fachkursen auch an den spezifischen Bedürfnissen von älteren Beschäftigten, Erwerbstätigen mit Migrationshintergrund sowie An- und Ungelernten orientieren.\n\nUmfangreiche Unterlagen zu den Querschnittszielen finden Sie in der Online-Materialsammlung der Agentur für Querschnittszielen im ESF auf der Webseite:"]
[null,"www.esf-querschnittsziele.de"]
[]
["11.1.","Gleichstellung von Frauen und Männern"]
[null,"Das Querschnittsziel \"Gleichstellung von Frauen und Männern\" zielt darauf ab, einen\nBeitrag zur gleichen wirtschaftlichen Unabhängigkeit von Frauen und Männern zu\nleisten. In diesem Zusammenhang sollen sich Frauen und Männer in gleichem Maß weiterqualifizieren können. \nDies beinhaltet auch, eine gute Vereinbarkeit von Weiterbildung und Familie anzustreben. \nBeispiele für Instrumente und Methoden finden Sie in der Online-Materialsammlung der Agentur für Gleichstellung im ESF auf der Webseite www.esf-gleichstellung.de.\n\n"]
[]
[null,"Verfolgen Sie mit Kursen hinsichtlich der Gleichstellung von Frauen und Männern eines der beiden Ziele? (Mehrfachnennungen möglich)\n"]
[]
["*)","1.)","Erhöhung der dauerhaften Beteiligung von Frauen am Erwerbsleben\nDie Angabe im Feld generiert sich automatisch entsprechend der Angabe unter 9.1. (Anzahl der weiblichen Kursteilnehmerinnen).",null,null,null,null,null,{"$f":"IF(OR(H146>0,H139>0),\"ja\",\"nein\")","v":"nein"}]
[]
["*)","2.)","Tragen Kurse zur Verbesserung des beruflichen Fortkommens von Frauen bei?\n",null,null,null,null,null,"     ja","nein"]
[null,"       "]
["11.2.","Chancengleichheit und Nichtdiskriminierung"]
[null,"In der Fachkursförderung der vorhergehenden Förderperiode waren Menschen mit Migrationshintergrund unterrepräsentiert im Vergleich zu ihrem Anteil an den Erwerbstätigen. Ein höherer Anteil von Menschen mit Migrationshintergrund, die an Fachkursen teilnehmen, ist erwünscht."]
[null,"Bitte schätzen Sie, wie hoch der Anteil an Kursteilnehmer/innen mit Migrationshintergrund sein wird:"]
["*)","Anteil Kursteilnehmer/innen mit Migrationshintergrund (Angabe in %):"]
[]
[null,"Insbesondere wenn der Anteil an Kursteilnehmer/innen mit Migrationshintergrund 25% nicht erreicht, empfehlen wir, durch geeignete Maßnahmen, bspw. Didaktik oder Marketing, den Anteil zu steigern."]
[null,"Sind entsprechende Maßnahmen geplant, um den Anteil an Teilnehmer/innen mit Migrationshintergrund zu erhöhen?"]
["*)","       Ja","wenn ja, welche:"]
[null,"       Nein"]
[]
["11.3.","Ökologische Nachhaltigkeit"]
[null,"Enthält der Antrag Kurse zu Themen, die zum Ziel der Nachhaltigkeit im Sinne des Schutzes der Umwelt und der Verbesserung ihrer Qualität beitragen (z.B. CO2-Reduzierung)?"]
["*)","       Ja ","Wie viele Teilnehmer/innen werden schätzungsweise über Kurse, die zu dem Ziel der ökologischen Nachhaltigkeit beitragen, erreicht (Angabe in %)?"]
[null,"       Nein"]
[]
["12.","Wir bestätigen, dass …"]
["►","wir von dem Merkblatt zum Förderprogramm Kenntnis genommen haben und die Bestimmungen beachten werden."]
[]
["►","wir damit einverstanden sind, dass die für die Antrags- und Zuschussbearbeitung notwendigen Daten edv-technisch erfasst und verarbeitet werden."]
[]
[null,"Ausgaben, Zuschuss und Finanzierung"]
[]
["►","uns bekannt ist, dass weitere Vergünstigungen wie zum Beispiel Preisnachlässe für Gruppenanmeldungen, Frühbucher-, Mitglieder- und Treuerabatte des Weiterbildungsträgers die zuschussfähige Teilnahmegebühr verringern."]
[]
["►","in der Rechnung die volle Teilnahmegebühr, alle weiteren Vergünstigungen sowie der Zuschuss jeweils getrennt ausgewiesen werden. Der Zuschuss muss von uns in voller Höhe an die entsendenden Unternehmen bzw. die Teilnehmenden weitergegeben werden. Dieses wird von uns in der Rechnung durch Absetzung des Zuschusses von der Teilnahmegebühr erfolgen.\nUns ist bekannt, dass es grundsätzlich unzulässig ist, die volle Teilnahmegebühr von den Teilnehmenden zu erheben und den Zuschuss zu einem späteren Zeitpunkt zu erstatten."]
[]
["►","uns bekannt ist, dass der Zuschuss vom Zuwendungsempfänger vorfinanziert werden muss und eventuell anfallende Finanzierungskosten nicht erstattet werden."]
[]
["►","uns bekannt ist, dass im Falle einer Zuschussgewährung ein separates Buchführungssystem oder ein geeigneter Buchführungscode zu verwenden ist."]
[]
["►","uns bekannt ist, dass eine weitere Förderung der Fachkurse beim Veranstalter oder der bezuschussten Kursgebühren aus Mitteln der Europäischen Union ausgeschlossen ist."]
[]
["►","der in den Anlagen in der Spalte \"Teilnahmegebühr pro Einzelkurs\" ausgewiesene Betrag ohne Mehrwertsteuer und ohne Übernachtungskosten angegeben ist. "]
[]
["►","uns bekannt ist, dass Bewirtungen für Teilnehmende nur bezuschusst werden, soweit sie in den erhobenen Teilnahmegebühren enthalten sind."]
[]
[null,"Evaluation und Monitoring"]
["►","uns bekannt ist, dass im Falle einer Zuschussgewährung umfangreiche Pflichten u.a. zur Erhebung von Daten über Fachkursteilnehmer/innen auf uns zukommen."]
[]
["►","uns bekannt ist, dass wir im Falle einer Zuschussgewährung im Rahmen der Datenerfassung verpflichtet sind, alle Fachkursteilnehmer/innen über die Notwendigkeit, die Rechtmäßigkeit und den Umfang der Datenerhebung zu informieren sowie diese über deren Monitoring- und Evaluationspflichten aufzuklären."]
[]
["►","uns bekannt ist, dass wir verpflichtet sind, an Monitoring- und Evaluierungsmaßnahmen teilzunehmen sowie bei Prüfungen mitzuwirken und die erforderlichen Auskünfte zu erteilen."]
[]
[null,"Publizitätspflichten"]
["►","wir im Falle einer Zuschussgewährung einverstanden sind, dass u.a. der Name des Zuwendungsempfängers und Postleitzahl, die Bezeichnung des Vorhabens (Fachkurse - Kurzbeschreibung), der Durchführungszeitraum und die förderfähigen Ausgaben in einer \"Liste der Vorhaben\" aufgenommen und veröffentlicht werden."]
[]
["►","uns bekannt ist, dass wir verpflichtet sind, alle an der Maßnahme Beteiligten über die Förderung aus Mitteln des Europäischen Sozialfonds zu informieren. Wir werden grundsätzlich bei allen Veröffentlichungen, Veranstaltungen sowie auf den Teilnahmerechnungen und/oder Teilnahmebescheinigungen darauf hinweisen, dass der Zuschuss vom Ministerium für Wirtschaft, Arbeit und Wohnungsbau Baden-Württemberg aus Mitteln der Europäischen Union getragen wird. "]
[]
["►","wir uns verpflichten, eine Vorlage für das ESF-Plakat, die wir unter www.esf-bw.de finden, mit Informationen zu unseren Fachkursen zu ergänzen und gut sichtbar bspw. in den Kursräumen oder im Eingangsbereich während der Durchführung unserer Fachkurse auszuhängen."]
[]
["►","uns bekannt ist, dass wir, sofern wir eine Webseite betreiben, verpflichtet sind, dort eine kurze Beschreibung einzustellen, aus der die Ziele und Ergebnisse der Fachkursförderung sowie die finanzielle Unterstützung durch die EU hervorgehen."]
[]
["►","uns bekannt ist, dass die Erfüllung der Publizitätspflichten in geeigneter Weise zu dokumentieren ist (beispielsweise Belegexemplare, Screenshot, Fotodokumentation oder ähnliches)."]
[]
[null,"Aufbewahrungspflicht"]
["►","uns bekannt ist, dass alle Belege, Verträge und sonstige mit dem Zuschuss zusammenhängenden Unterlagen mindestens bis 31.12.2031 aufbewahrt werden müssen. Uns ist zudem bekannt, dass wir sie jederzeit vollständig zu Prüfungen bereitstellen können müssen und jede Änderung des Aufbewahrungsortes der L-Bank mitzuteilen haben. \nDiese Pflicht bleibt bei Betriebsänderungen unverändert bestehen (z.B. Einschränkung, Stilllegung, Verlegung des ganzen Betriebs oder wesentlicher Betriebsteile). Die Unterlagen müssen bei Betriebsänderungen ebenfalls bis 31.12.2031 aufbewahrt werden und jederzeit vollständig zur Prüfung bereitgestellt werden können. Jede Änderung des Aufbewahrungsortes ist auch bei Betriebsänderungen der L-Bank mitzuteilen. \nFalls sich die Aufbewahrungsfrist ändert, erfolgt eine entsprechende Information."]
[]
[null,"Wir bestätigen, dass die in diesem Formular einschließlich aller Anlagen gemachten Angaben vollständig und richtig sind."]
[]
[]
[null,"Ort, Datum",null,null,null,"Stempel, rechtsverbindliche Unterschrift des Antragstellenden"]
[null,"Anlagen:"]
[null,"Aufstellung der geplanten Fachkurse (siehe Anlage 1 und/oder Anlage 2)"]
[null,"Aussagekräftige Kursbeschreibung, falls bereits vorhanden: Kursprogramm des Veranstalters, aus der Kursdauer, -termin, -thema, -dozent, -inhalt und -ort ersichtlich sind."]
[null,"weitere Nachweise (falls erforderlich): Verbandssatzung, Handelsregisterauszug, Vereinsregisterauszug"]
[]
["Im Falle einer Bewilligung erhalten Sie zusammen mit dem Bewilligungsbescheid Informationen über den Zugang zum ZuMa-System der L-Bank."]
[]
[]
[]
[]
[null,null,null,null,null,null,null,null,null,null,null,"01 Land- und Forstwirtschaft"]
[null,null,null,null,null,null,null,null,null,null,null,"02 Fischerei und Aquakultur"]
[null,null,null,null,null,null,null,null,null,null,null,"03 Herstellung von Nahrungs- und Futtermitteln, Getränkeherstellung"]
[null,null,null,null,null,null,null,null,null,null,null,"04 Herstellung von Textilien und Bekleidung"]
[null,null,null,null,null,null,null,null,null,null,null,"05 Fahrzeugbau"]
[null,null,null,null,null,null,null,null,null,null,null,"06 Herstellung von Datenverarbeitungsgeräten, elektronischen und optischen Erzeugnissen"]
[null,null,null,null,null,null,null,null,null,null,null,"07 Sonstiges nicht spezifiziertes verarbeitendes Gewerbe"]
[null,null,null,null,null,null,null,null,null,null,null,"08 Baugewerbe/Bau"]
[null,null,null,null,null,null,null,null,null,null,null,"09 Bergbau und Gewinnung von Steinen und Erden (einschließlich zwecks Energieerzeugung betriebener Bergbau)"]
[null,null,null,null,null,null,null,null,null,null,null,"10 Energieversorgung"]
[null,null,null,null,null,null,null,null,null,null,null,"11 Wasserversorgung, Abwasser- und Abfallentsorgung und Beseitigung von Umweltverschmutzungen"]
[null,null,null,null,null,null,null,null,null,null,null,"12 Verkehr und Lagerei"]
[null,null,null,null,null,null,null,null,null,null,null,"13 Informations- und Kommunikation, einschließlich Telekommunikation, Informationsdienstleistungen, Erbringung von Dienstleistungen der Informationstechnologie"]
[null,null,null,null,null,null,null,null,null,null,null,"14 Handel"]
[null,null,null,null,null,null,null,null,null,null,null,"15 Gastgewerbe/Beherbergung und Gastronomie"]
[null,null,null,null,null,null,null,null,null,null,null,"16 Erbringung von Finanz- und Versicherungsdienstleistungen"]
[null,null,null,null,null,null,null,null,null,null,null,"17 Grundstücks- und Wohnungswesen, Vermietung und wirtschaftliche Tätigkeiten"]
[null,null,null,null,null,null,null,null,null,null,null,"18 Öffentliche Verwaltung"]
[null,null,null,null,null,null,null,null,null,null,null,"19 Erziehung und Unterricht"]
[null,null,null,null,null,null,null,null,null,null,null,"20 Gesundheits- und Sozialwesen"]
[null,null,null,null,null,null,null,null,null,null,null,"21 Sozialwesen, öffentliche und persönliche Dienstleistungen"]
[null,null,null,null,null,null,null,null,null,null,null,"22 Dienstleistungen im Zusammenhang mit Umwelt und Klimawandel"]
[null,null,null,null,null,null,null,null,null,null,null,"23 Kunst, Unterhaltung, Kreativwirtschaft und Erholung"]
[null,null,null,null,null,null,null,null,null,null,null,"24 Sonstige nicht spezifizierte Dienstleistungen"]
[null,null,null,null,null,null,null,null,null,null,null,"Bitte wählen Sie mithilfe des Dropdown die zutreffende Branche aus! "]

{"sheet":"Anlage 1","index":1,"n_rows":169,"n_cols":12,"rows_kept":169,"cut":false,"hidden":false,"merged":[[158,6,158,7],[158,9,158,10],[159,6,159,7],[159,9,159,10],[3,9,3,11],[155,6,155,7],[155,9,155,10],[156,6,156,7],[156,9,156,10],[157,6,157,7],[157,9,157,10],[152,6,152,7],[152,9,152,10],[153,6,153,7],[153,9,153,10],[154,6,154,7],[154,9,154,10],[149,6,149,7],[149,9,149,10],[150,6,150,7],[150,9,150,10],[151,6,151,7],[151,9,151,10],[146,6,146,7],[146,9,146,10],[147,6,147,7],[147,9,147,10],[148,6,148,7],[148,9,148,10],[143,6,143,7],[143,9,143,10],[144,6,144,7],[144,9,144,10],[145,6,145,7],[145,9,145,10],[140,6,140,7],[140,9,140,10],[141,6,141,7],[141,9,141,10],[142,6,142,7],[142,9,142,10],[137,6,137,7],[137,9,137,10],[138,6,138,7],[138,9,138,10],[139,6,139,7],[139,9,139,10],[134,6,134,7],[134,9,134,10],[135,6,135,7],[135,9,135,10],[136,6,136,7],[136,9,136,10],[131,6,131,7],[131,9,131,10],[132,6,132,7],[132,9,132,10],[133,6,133,7],[133,9,133,10],[128,6,128,7],[128,9,128,10],[129,6,129,7],[129,9,129,10],[130,6,130,7],[130,9,130,10],[125,6,125,7],[125,9,125,10],[126,6,126,7],[126,9,126,10],[127,6,127,7],[127,9,127,10],[122,6,122,7],[122,9,122,10],[123,6,123,7],[123,9,123,10],[124,6,124,7],[124,9,124,10],[119,6,119,7],[119,9,119,10],[120,6,120,7],[120,9,120,10],[121,6,121,7],[121,9,121,10],[116,6,116,7],[116,9,116,10],[117,6,117,7],[117,9,117,10],[118,6,118,7],[118,9,118,10],[113,6,113,7],[113,9,113,10],[114,6,114,7],[114,9,114,10],[115,6,115,7],[115,9,115,10],[110,6,110,7],[110,9,110,10],[111,6,111,7],[111,9,111,10],[112,6,112,7],[112,9,112,10],[107,6,107,7],[107,9,107,10],[108,6,108,7],[108,9,108,10],[109,6,109,7],[109,9,109,10],[104,6,104,7],[104,9,104,10],[105,6,105,7],[105,9,105,10],[106,6,106,7],[106,9,106,10],[101,6,101,7],[101,9,101,10],[102,6,102,7],[102,9,102,10],[103,6,103,7],[103,9,103,10],[98,6,98,7],[98,9,98,10],[99,6,99,7],[99,9,99,10],[100,6,100,7],[100,9,100,10],[95,6,95,7],[95,9,95,10],[96,6,96,7],[96,9,96,10],[97,6,97,7],[97,9,97,10],[92,6,92,7],[92,9,92,10],[93,6,93,7],[93,9,93,10],[94,6,94,7],[94,9,94,10],[89,6,89,7],[89,9,89,10],[90,6,90,7],[90,9,90,10],[91,6,91,7],[91,9,91,10],[86,6,86,7],[86,9,86,10],[87,6,87,7],[87,9,87,10],[88,6,88,7],[88,9,88,10],[83,6,83,7],[83,9,83,10],[84,6,84,7],[84,9,84,10],[85,6,85,7],[85,9,85,10],[80,6,80,7],[80,9,80,10],[81,6,81,7],[81,9,81,10],[82,6,82,7],[82,9,82,10],[77,6,77,7],[77,9,77,10],[78,6,78,7],[78,9,78,10],[79,6,79,7],[79,9,79,10],[74,6,74,7],[74,9,74,10],[75,6,75,7],[75,9,75,10],[76,6,76,7],[76,9,76,10],[71,6,71,7],[71,9,71,10],[72,6,72,7],[72,9,72,10],[73,6,73,7],[73,9,73,10],[68,6,68,7],[68,9,68,10],[69,6,69,7],[69,9,69,10],[70,6,70,7],[70,9,70,10],[65,6,65,7],[65,9,65,10],[66,6,66,7],[66,9,66,10],[67,6,67,7],[67,9,67,10],[62,6,62,7],[62,9,62,10],[63,6,63,7],[63,9,63,10],[64,6,64,7],[64,9,64,10],[59,6,59,7],[59,9,59,10],[60,6,60,7],[60,9,60,10],[61,6,61,7],[61,9,61,10],[56,6,56,7],[56,9,56,10],[57,6,57,7],[57,9,57,10],[58,6,58,7],[58,9,58,10],[53,6,53,7],[53,9,53,10],[54,6,54,7],[54,9,54,10],[55,6,55,7],[55,9,55,10],[50,6,50,7],[50,9,50,10],[51,6,51,7],[51,9,51,10],[52,6,52,7],[52,9,52,10],[47,6,47,7],[47,9,47,10],[48,6,48,7],[48,9,48,10],[49,6,49,7],[49,9,49,10],[44,6,44,7],[44,9,44,10],[45,6,45,7],[45,9,45,10],[46,6,46,7],[46,9,46,10],[41,6,41,7],[41,9,41,10],[42,6,42,7],[42,9,42,10],[43,6,43,7],[43,9,43,10],[39,6,39,7],[39,9,39,10],[40,6,40,7],[40,9,40,10],[35,6,35,7],[35,9,35,10],[36,6,36,7],[36,9,36,10],[37,6,37,7],[37,9,37,10],[38,6,38,7],[38,9,38,10],[32,6,32,7],[32,9,32,10],[33,6,33,7],[33,9,33,10],[34,6,34,7],[34,9,34,10],[29,6,29,7],[29,9,29,10],[30,6,30,7],[30,9,30,10],[31,6,31,7],[31,9,31,10],[10,6,10,7],[11,6,11,7],[11,9,11,10],[12,6,12,7],[12,9,12,10],[22,9,22,10],[17,6,17,7],[17,9,17,10],[18,6,18,7],[18,9,18,10],[19,6,19,7],[19,9,19,10],[14,6,14,7],[20,6,20,7],[20,9,20,10],[21,6,21,7],[21,9,21,10],[22,6,22,7],[1,3,1,5],[2,3,2,5],[13,6,13,7],[13,9,13,10],[14,9,14,10],[15,6,15,7],[15,9,15,10],[16,6,16,7],[16,9,16,10],[2,7,2,8],[6,1,6,11],[2,10,2,11],[8,11,9,11],[8,1,9,1],[8,4,9,4],[8,5,9,5],[8,3,9,3],[3,5,3,8],[8,6,9,7],[8,9,9,10],[4,1,4,11],[8,2,9,2],[8,8,9,8],[10,9,10,10],[163,8,163,10],[164,8,164,10],[168,3,168,11],[169,3,169,11],[167,3,167,11],[165,9,165,10],[166,9,166,10],[162,9,162,10],[161,4,161,5],[162,3,166,5],[162,6,166,7],[26,6,26,7],[26,9,26,10],[27,6,27,7],[27,9,27,10],[28,6,28,7],[28,9,28,10],[23,6,23,7],[23,9,23,10],[24,6,24,7],[24,9,24,10],[25,6,25,7],[25,9,25,10]]}
[]
[null,"Anlage 1: ",null,"Fachkurse in einfacher, leicht verständlicher Sprache"]
[null,null,null,"Aufstellung der geplanten Fachkurse in der Zeit vom",null,null,"*)",null,null,"bis  *)"]
[null,null,null,null,null,"Datum muss den ersten Kurstag umfassen.",null,null,null,"Datum des voraussichtlichen letzten Kurstags."]
[null,"Bitte fassen Sie Anträge, die zwischen dem 01.09 und 31.08 des Folgejahres beginnen, möglichst in einem Antrag zusammen."]
[]
[null,"Bei allen Angaben muss es sich um realistische Schätzungen handeln, die mit hoher Wahrscheinlichkeit eintreffen werden.\nDer Austausch von Teilnehmer/innen innerhalb förderfähiger Kurse ist möglich.  "]
[]
[null,"Nr. ","Kursnummer laut Kursprogramm (falls vorhanden)","Kursbezeichnung (legen Sie bitte eine aussagekräftige Kursbeschreibung bei, aus der die spezielle Ausrichtung auf die spezifischen Bedarfe von geringqualifizierten Beschäftigten eindeutig hervorgeht) ","Anzahl der geplanten Kurse","Dauer des Einzel-kurses in Unterrichts-einheiten","Voraussichtliche \nAnzahl förderfähiger Teilnehmer/innen\ninsgesamt",null,"Teilnahmegebühr pro Einzelkurs in Euro\n\n100%","Einzelzuschuss \npro Teilnehmer/-in",null,"Zuschuss gesamt für alle Teilnehmer/innen"]
[]
[null,1,null,null,null,null,null,null,null,{"$f":"IF(G11>0,I11*0.7,0)","v":0},null,{"$f":"G11*I11*0.7","v":0}]
[null,2,null,null,null,null,null,null,null,{"$f":"IF(G12>0,I12*0.7,0)","v":0},null,{"$f":"G12*I12*0.7","v":0}]
[null,3,null,null,null,null,null,null,null,0,null,0]
[null,4,null,null,null,null,null,null,null,0,null,0]
[null,5,null,null,null,null,null,null,null,0,null,0]
[null,6,null,null,null,null,null,null,null,0,null,0]
[null,7,null,null,null,null,null,null,null,0,null,0]
[null,8,null,null,null,null,null,null,null,0,null,0]
[null,9,null,null,null,null,null,null,null,0,null,0]
[null,10,null,null,null,null,null,null,null,0,null,0]
[null,11,null,null,null,null,null,null,null,0,null,0]
[null,12,null,null,null,null,null,null,null,0,null,0]
[null,13,null,null,null,null,null,null,null,0,null,0]
[null,14,null,null,null,null,null,null,null,0,null,0]
[null,15,null,null,null,null,null,null,null,0,null,0]
[null,16,null,null,null,null,null,null,null,0,null,0]
[null,17,null,null,null,null,null,null,null,0,null,0]
[null,18,null,null,null,null,null,null,null,0,null,0]
[null,19,null,null,null,null,null,null,null,0,null,0]
[null,20,null,null,null,null,null,null,null,0,null,0]
[null,21,null,null,null,null,null,null,null,0,null,0]
[null,22,null,null,null,null,null,null,null,0,null,0]
[null,23,null,null,null,null,null,null,null,0,null,0]
[null,24,null,null,null,null,null,null,null,0,null,0]
[null,25,null,null,null,null,null,null,null,0,null,0]
[null,26,null,null,null,null,null,null,null,0,null,0]
[null,27,null,null,null,null,null,null,null,0,null,0]
[null,28,null,null,null,null,null,null,null,0,null,0]
[null,29,null,null,null,null,null,null,null,0,null,0]
[null,30,null,null,null,null,null,null,null,0,null,0]
[null,31,null,null,null,null,null,null,null,0,null,0]
[null,32,null,null,null,null,null,null,null,0,null,0]
[null,33,null,null,null,null,null,null,null,0,null,0]
[null,34,null,null,null,null,null,null,null,0,null,0]
[null,35,null,null,null,null,null,null,null,0,null,0]
[null,36,null,null,null,null,null,null,null,0,null,0]
[null,37,null,null,null,null,null,null,null,0,null,0]
[null,38,null,null,null,null,null,null,null,0,null,0]
[null,39,null,null,null,null,null,null,null,0,null,0]
[null,40,null,null,null,null,null,null,null,0,null,0]
[null,41,null,null,null,null,null,null,null,0,null,0]
[null,42,null,null,null,null,null,null,null,0,null,0]
[null,43,null,null,null,null,null,null,null,0,null,0]
[null,44,null,null,null,null,null,null,null,0,null,0]
[null,45,null,null,null,null,null,null,null,0,null,0]
[null,46,null,null,null,null,null,null,null,0,null,0]
[null,47,null,null,null,null,null,null,null,0,null,0]
[null,48,null,null,null,null,null,null,null,0,null,0]
[null,49,null,null,null,null,null,null,null,0,null,0]
[null,50,null,null,null,null,null,null,null,0,null,0]
[null,51,null,null,null,null,null,null,null,0,null,0]
[null,52,null,null,null,null,null,null,null,0,null,0]
[null,53,null,null,null,null,null,null,null,0,null,0]
[null,54,null,null,null,null,null,null,null,0,null,0]
[null,55,null,null,null,null,null,null,null,0,null,0]
[null,56,null,null,null,null,null,null,null,0,null,0]
[null,57,null,null,null,null,null,null,null,0,null,0]
[null,58,null,null,null,null,null,null,null,0,null,0]
[null,59,null,null,null,null,null,null,null,0,null,0]
[null,60,null,null,null,null,null,null,null,0,null,0]
[null,61,null,null,null,null,null,null,null,0,null,0]
[null,62,null,null,null,null,null,null,null,0,null,0]
[null,63,null,null,null,null,null,null,null,0,null,0]
[null,64,null,null,null,null,null,null,null,0,null,0]
[null,65,null,null,null,null,null,null,null,0,null,0]
[null,66,null,null,null,null,null,null,null,{"$f":"IF(G76>0,I76*0.7,0)","v":0},null,{"$f":"G76*I76*0.7","v":0}]
[null,67,null,null,null,null,null,null,null,0,null,0]
[null,68,null,null,null,null,null,null,null,0,null,0]
[null,69,null,null,null,null,null,null,null,0,null,0]
[null,70,null,null,null,null,null,null,null,0,null,0]
[null,71,null,null,null,null,null,null,null,0,null,0]
[null,72,null,null,null,null,null,null,null,0,null,0]
[null,73,null,null,null,null,null,null,null,0,null,0]
[null,74,null,null,null,null,null,null,null,0,null,0]
[null,75,null,null,null,null,null,null,null,0,null,0]
[null,76,null,null,null,null,null,null,null,0,null,0]
[null,77,null,null,null,null,null,null,null,0,null,0]
[null,78,null,null,null,null,null,null,null,0,null,0]
[null,79,null,null,null,null,null,null,null,0,null,0]
[null,80,null,null,null,null,null,null,null,0,null,0]
[null,81,null,null,null,null,null,null,null,0,null,0]
[null,82,null,null,null,null,null,null,null,0,null,0]
[null,83,null,null,null,null,null,null,null,0,null,0]
[null,84,null,null,null,null,null,null,null,0,null,0]
[null,85,null,null,null,null,null,null,null,0,null,0]
[null,86,null,null,null,null,null,null,null,0,null,0]
[null,87,null,null,null,null,null,null,null,0,null,0]
[null,88,null,null,null,null,null,null,null,0,null,0]
[null,89,null,null,null,null,null,null,null,0,null,0]
[null,90,null,null,null,null,null,null,null,0,null,0]
[null,91,null,null,null,null,null,null,null,0,null,0]
[null,92,null,null,null,null,null,null,null,0,null,0]
[null,93,null,null,null,null,null,null,null,0,null,0]
[null,94,null,null,null,null,null,null,null,0,null,0]
[null,95,null,null,null,null,null,null,null,0,null,0]
[null,96,null,null,null,null,null,null,null,0,null,0]
[null,97,null,null,null,null,null,null,null,0,null,0]
[null,98,null,null,null,null,null,null,null,0,null,0]
[null,99,null,null,null,null,null,null,null,0,null,0]
[null,100,null,null,null,null,null,null,null,0,null,0]
[null,101,null,null,null,null,null,null,null,0,null,0]
[null,102,null,null,null,null,null,null,null,0,null,0]
[null,103,null,null,null,null,null,null,null,0,null,0]
[null,104,null,null,null,null,null,null,null,0,null,0]
[null,105,null,null,null,null,null,null,null,0,null,0]
[null,106,null,null,null,null,null,null,null,0,null,0]
[null,107,null,null,null,null,null,null,null,0,null,0]
[null,108,null,null,null,null,null,null,null,0,null,0]
[null,109,null,null,null,null,null,null,null,0,null,0]
[null,110,null,null,null,null,null,null,null,0,null,0]
[null,111,null,null,null,null,null,null,null,0,null,0]
[null,112,null,null,null,null,null,null,null,0,null,0]
[null,113,null,null,null,null,null,null,null,0,null,0]
[null,114,null,null,null,null,null,null,null,0,null,0]
[null,115,null,null,null,null,null,null,null,0,null,0]
[null,116,null,null,null,null,null,null,null,0,null,0]
[null,117,null,null,null,null,null,null,null,0,null,0]
[null,118,null,null,null,null,null,null,null,0,null,0]
[null,119,null,null,null,null,null,null,null,0,null,0]
[null,120,null,null,null,null,null,null,null,0,null,0]
[null,121,null,null,null,null,null,null,null,0,null,0]
[null,122,null,null,null,null,null,null,null,0,null,0]
[null,123,null,null,null,null,null,null,null,0,null,0]
[null,124,null,null,null,null,null,null,null,0,null,0]
[null,125,null,null,null,null,null,null,null,0,null,0]
[null,126,null,null,null,null,null,null,null,0,null,0]
[null,127,null,null,null,null,null,null,null,0,null,0]
[null,128,null,null,null,null,null,null,null,0,null,0]
[null,129,null,null,null,null,null,null,null,0,null,0]
[null,130,null,null,null,null,null,null,null,{"$f":"IF(G140>0,I140*0.7,0)","v":0},null,{"$f":"G140*I140*0.7","v":0}]
[null,131,null,null,null,null,null,null,null,0,null,0]
[null,132,null,null,null,null,null,null,null,0,null,0]
[null,133,null,null,null,null,null,null,null,0,null,0]
[null,134,null,null,null,null,null,null,null,0,null,0]
[null,135,null,null,null,null,null,null,null,0,null,0]
[null,136,null,null,null,null,null,null,null,0,null,0]
[null,137,null,null,null,null,null,null,null,0,null,0]
[null,138,null,null,null,null,null,null,null,0,null,0]
[null,139,null,null,null,null,null,null,null,0,null,0]
[null,140,null,null,null,null,null,null,null,0,null,0]
[null,141,null,null,null,null,null,null,null,0,null,0]
[null,142,null,null,null,null,null,null,null,0,null,0]
[null,143,null,null,null,null,null,null,null,0,null,0]
[null,144,null,null,null,null,null,null,null,0,null,0]
[null,145,null,null,null,null,null,null,null,0,null,0]
[null,146,null,null,null,null,null,null,null,0,null,0]
[null,147,null,null,null,null,null,null,null,0,null,0]
[null,148,null,null,null,null,null,null,null,0,null,0]
[null,149,null,null,null,null,null,null,null,0,null,0]
[null,150,null,null,null,null,null,null,null,0,null,0]
[null,null,null,"Summe der geplanten Kurse",{"$f":"SUM(E11:E160)","v":0}]
[null,null,null,"Summen Anlage 1",null,null,null,null,null,null,null,"insgesamt"]
[null,null,null,"kalkulierte Anzahl der Fachkursteilnehmer/innen Anlage 1",null,null,{"$f":"SUM(G11:G160)","v":0},null,null,"Zuschuss",null,{"$f":"SUM(L11:L160)","v":0}]
[null,null,null,null,null,null,null,null,"davon ESF-Mittel",null,null,{"$f":"L163*0.5","v":0}]
[null,null,null,null,null,null,null,null,"davon Landesmittel des Ministeriums \nfür Wirtschaft, Arbeit und Wohnungsbau",null,null,{"$f":"L163*0.5","v":0}]
[null,null,null,null,null,null,null,null,null," + private Kofinanzierung (i.d.R.)",null,{"$f":"L163/70*30","v":0}]
[null,null,null,null,null,null,null,null,null," = Gesamtausgaben",null,{"$f":"L163+L166","v":0}]
[null,null,null,{"$f":"IF((L163+'Anlage 2'!L163)>300000,\"Der Höchstzuschuss pro Weiterbildungsträger und Jahr (12 Monate) liegt bei 300.000 €. Bitte überprüfen Sie Ihre Eingaben.\",\" \")","v":" "}]
[null,null,null,{"$f":"IF((L163+'Anlage 2'!L163)<10000,\"Zuschüsse unter 10.000 € werden nicht bewilligt. Bitte überprüfen Sie Ihre Eingaben.\",\" \")","v":"Zuschüsse unter 10.000 € werden nicht bewilligt. Bitte überprüfen Sie Ihre Eingaben."}]

{"sheet":"Anlage 2","index":2,"n_rows":169,"n_cols":12,"rows_kept":169,"cut":false,"hidden":false,"merged":[[1,3,1,5],[2,3,2,5],[2,7,2,8],[2,10,2,11],[3,5,3,8],[3,9,3,11],[4,1,4,11],[6,1,6,11],[8,1,9,1],[8,2,9,2],[8,3,9,3],[8,4,9,4],[8,5,9,5],[8,6,9,7],[8,8,9,8],[8,9,9,10],[13,6,13,7],[13,9,13,10],[14,6,14,7],[14,9,14,10],[15,6,15,7],[15,9,15,10],[8,11,9,11],[10,6,10,7],[10,9,10,10],[11,6,11,7],[11,9,11,10],[12,6,12,7],[12,9,12,10],[19,6,19,7],[19,9,19,10],[20,6,20,7],[20,9,20,10],[21,6,21,7],[21,9,21,10],[16,6,16,7],[16,9,16,10],[17,6,17,7],[17,9,17,10],[18,6,18,7],[18,9,18,10],[25,6,25,7],[25,9,25,10],[26,6,26,7],[26,9,26,10],[27,6,27,7],[27,9,27,10],[22,6,22,7],[22,9,22,10],[23,6,23,7],[23,9,23,10],[24,6,24,7],[24,9,24,10],[31,6,31,7],[31,9,31,10],[32,6,32,7],[32,9,32,10],[33,6,33,7],[33,9,33,10],[28,6,28,7],[28,9,28,10],[29,6,29,7],[29,9,29,10],[30,6,30,7],[30,9,30,10],[37,6,37,7],[37,9,37,10],[38,6,38,7],[38,9,38,10],[39,6,39,7],[39,9,39,10],[34,6,34,7],[34,9,34,10],[35,6,35,7],[35,9,35,10],[36,6,36,7],[36,9,36,10],[43,6,43,7],[43,9,43,10],[44,6,44,7],[44,9,44,10],[45,6,45,7],[45,9,45,10],[40,6,40,7],[40,9,40,10],[41,6,41,7],[41,9,41,10],[42,6,42,7],[42,9,42,10],[49,6,49,7],[49,9,49,10],[50,6,50,7],[50,9,50,10],[51,6,51,7],[51,9,51,10],[46,6,46,7],[46,9,46,10],[47,6,47,7],[47,9,47,10],[48,6,48,7],[48,9,48,10],[55,6,55,7],[55,9,55,10],[56,6,56,7],[56,9,56,10],[57,6,57,7],[57,9,57,10],[52,6,52,7],[52,9,52,10],[53,6,53,7],[53,9,53,10],[54,6,54,7],[54,9,54,10],[61,6,61,7],[61,9,61,10],[62,6,62,7],[62,9,62,10],[63,6,63,7],[63,9,63,10],[58,6,58,7],[58,9,58,10],[59,6,59,7],[59,9,59,10],[60,6,60,7],[60,9,60,10],[67,6,67,7],[67,9,67,10],[68,6,68,7],[68,9,68,10],[69,6,69,7],[69,9,69,10],[64,6,64,7],[64,9,64,10],[65,6,65,7],[65,9,65,10],[66,6,66,7],[66,9,66,10],[73,6,73,7],[73,9,73,10],[74,6,74,7],[74,9,74,10],[75,6,75,7],[75,9,75,10],[70,6,70,7],[70,9,70,10],[71,6,71,7],[71,9,71,10],[72,6,72,7],[72,9,72,10],[79,6,79,7],[79,9,79,10],[80,6,80,7],[80,9,80,10],[81,6,81,7],[81,9,81,10],[76,6,76,7],[76,9,76,10],[77,6,77,7],[77,9,77,10],[78,6,78,7],[78,9,78,10],[85,6,85,7],[85,9,85,10],[86,6,86,7],[86,9,86,10],[87,6,87,7],[87,9,87,10],[82,6,82,7],[82,9,82,10],[83,6,83,7],[83,9,83,10],[84,6,84,7],[84,9,84,10],[91,6,91,7],[91,9,91,10],[92,6,92,7],[92,9,92,10],[93,6,93,7],[93,9,93,10],[88,6,88,7],[88,9,88,10],[89,6,89,7],[89,9,89,10],[90,6,90,7],[90,9,90,10],[97,6,97,7],[97,9,97,10],[98,6,98,7],[98,9,98,10],[99,6,99,7],[99,9,99,10],[94,6,94,7],[94,9,94,10],[95,6,95,7],[95,9,95,10],[96,6,96,7],[96,9,96,10],[103,6,103,7],[103,9,103,10],[104,6,104,7],[104,9,104,10],[105,6,105,7],[105,9,105,10],[100,6,100,7],[100,9,100,10],[101,6,101,7],[101,9,101,10],[102,6,102,7],[102,9,102,10],[109,6,109,7],[109,9,109,10],[110,6,110,7],[110,9,110,10],[111,6,111,7],[111,9,111,10],[106,6,106,7],[106,9,106,10],[107,6,107,7],[107,9,107,10],[108,6,108,7],[108,9,108,10],[115,6,115,7],[115,9,115,10],[116,6,116,7],[116,9,116,10],[117,6,117,7],[117,9,117,10],[112,6,112,7],[112,9,112,10],[113,6,113,7],[113,9,113,10],[114,6,114,7],[114,9,114,10],[121,6,121,7],[121,9,121,10],[122,6,122,7],[122,9,122,10],[123,6,123,7],[123,9,123,10],[118,6,118,7],[118,9,118,10],[119,6,119,7],[119,9,119,10],[120,6,120,7],[120,9,120,10],[127,6,127,7],[127,9,127,10],[128,6,128,7],[128,9,128,10],[129,6,129,7],[129,9,129,10],[124,6,124,7],[124,9,124,10],[125,6,125,7],[125,9,125,10],[126,6,126,7],[126,9,126,10],[133,6,133,7],[133,9,133,10],[134,6,134,7],[134,9,134,10],[135,6,135,7],[135,9,135,10],[130,6,130,7],[130,9,130,10],[131,6,131,7],[131,9,131,10],[132,6,132,7],[132,9,132,10],[139,6,139,7],[139,9,139,10],[140,6,140,7],[140,9,140,10],[141,6,141,7],[141,9,141,10],[136,6,136,7],[136,9,136,10],[137,6,137,7],[137,9,137,10],[138,6,138,7],[138,9,138,10],[145,6,145,7],[145,9,145,10],[146,6,146,7],[146,9,146,10],[147,6,147,7],[147,9,147,10],[142,6,142,7],[142,9,142,10],[143,6,143,7],[143,9,143,10],[144,6,144,7],[144,9,144,10],[151,6,151,7],[151,9,151,10],[152,6,152,7],[152,9,152,10],[153,6,153,7],[153,9,153,10],[148,6,148,7],[148,9,148,10],[149,6,149,7],[149,9,149,10],[150,6,150,7],[150,9,150,10],[157,6,157,7],[157,9,157,10],[158,6,158,7],[158,9,158,10],[159,6,159,7],[159,9,159,10],[154,6,154,7],[154,9,154,10],[155,6,155,7],[155,9,155,10],[156,6,156,7],[156,9,156,10],[167,3,167,11],[168,3,168,11],[169,3,169,11],[161,4,161,5],[162,3,166,5],[162,6,166,7],[162,9,162,10],[163,8,163,10],[164,8,164,10],[165,9,165,10],[166,9,166,10]]}
[]
[null,"Anlage 2: ",null,"Fachkurse \"Lernen lernen\""]
[null,null,null,"Aufstellung der geplanten Fachkurse in der Zeit vom",null,null,"*)",null,null,"bis  *)"]
[null,null,null,null,null,"Datum muss den ersten Kurstag umfassen.",null,null,null,"Datum des voraussichtlichen letzten Kurstags."]
[null,"Bitte fassen Sie Anträge, die zwischen dem 01.09 und 31.08 des Folgejahres beginnen, möglichst in einem Antrag zusammen."]
[]
[null,"Bei allen Angaben muss es sich um realistische Schätzungen handeln, die mit hoher Wahrscheinlichkeit eintreffen werden.\nDer Austausch von Teilnehmer/innen innerhalb förderfähiger Kurse ist möglich.  "]
[]
[null,"Nr. ","Kursnummer laut Kursprogramm (falls vorhanden)","Kursbezeichnung (legen Sie bitte eine aussagekräftige Kursbeschreibung bei, aus der die spezielle Ausrichtung auf die spezifischen Bedarfe von geringqualifizierten Beschäftigten eindeutig hervorgeht) ","Anzahl der geplanten Kurse","Dauer des Einzel-kurses in Unterrichts-einheiten","Voraussichtliche \nAnzahl förderfähiger Teilnehmer/innen\ninsgesamt",null,"Teilnahmegebühr pro Einzelkurs in Euro\n\n100%","Einzelzuschuss \npro Teilnehmer/-in",null,"Zuschuss gesamt für alle Teilnehmer/innen"]
[]
[null,1,null,null,null,null,null,null,null,{"$f":"IF(G11>0,I11*0.7,0)","v":0},null,{"$f":"G11*I11*0.7","v":0}]
[null,2,null,null,null,null,null,null,null,{"$f":"IF(G12>0,I12*0.7,0)","v":0},null,{"$f":"G12*I12*0.7","v":0}]
[null,3,null,null,null,null,null,null,null,0,null,0]
[null,4,null,null,null,null,null,null,null,0,null,0]
[null,5,null,null,null,null,null,null,null,0,null,0]
[null,6,null,null,null,null,null,null,null,0,null,0]
[null,7,null,null,null,null,null,null,null,0,null,0]
[null,8,null,null,null,null,null,null,null,0,null,0]
[null,9,null,null,null,null,null,null,null,0,null,0]
[null,10,null,null,null,null,null,null,null,0,null,0]
[null,11,null,null,null,null,null,null,null,0,null,0]
[null,12,null,null,null,null,null,null,null,0,null,0]
[null,13,null,null,null,null,null,null,null,0,null,0]
[null,14,null,null,null,null,null,null,null,0,null,0]
[null,15,null,null,null,null,null,null,null,0,null,0]
[null,16,null,null,null,null,null,null,null,0,null,0]
[null,17,null,null,null,null,null,null,null,0,null,0]
[null,18,null,null,null,null,null,null,null,0,null,0]
[null,19,null,null,null,null,null,null,null,0,null,0]
[null,20,null,null,null,null,null,null,null,0,null,0]
[null,21,null,null,null,null,null,null,null,0,null,0]
[null,22,null,null,null,null,null,null,null,0,null,0]
[null,23,null,null,null,null,null,null,null,0,null,0]
[null,24,null,null,null,null,null,null,null,0,null,0]
[null,25,null,null,null,null,null,null,null,0,null,0]
[null,26,null,null,null,null,null,null,null,0,null,0]
[null,27,null,null,null,null,null,null,null,0,null,0]
[null,28,null,null,null,null,null,null,null,0,null,0]
[null,29,null,null,null,null,null,null,null,0,null,0]
[null,30,null,null,null,null,null,null,null,0,null,0]
[null,31,null,null,null,null,null,null,null,0,null,0]
[null,32,null,null,null,null,null,null,null,0,null,0]
[null,33,null,null,null,null,null,null,null,0,null,0]
[null,34,null,null,null,null,null,null,null,0,null,0]
[null,35,null,null,null,null,null,null,null,0,null,0]
[null,36,null,null,null,null,null,null,null,0,null,0]
[null,37,null,null,null,null,null,null,null,0,null,0]
[null,38,null,null,null,null,null,null,null,0,null,0]
[null,39,null,null,null,null,null,null,null,0,null,0]
[null,40,null,null,null,null,null,null,null,0,null,0]
[null,41,null,null,null,null,null,null,null,0,null,0]
[null,42,null,null,null,null,null,null,null,0,null,0]
[null,43,null,null,null,null,null,null,null,0,null,0]
[null,44,null,null,null,null,null,null,null,0,null,0]
[null,45,null,null,null,null,null,null,null,0,null,0]
[null,46,null,null,null,null,null,null,null,0,null,0]
[null,47,null,null,null,null,null,null,null,0,null,0]
[null,48,null,null,null,null,null,null,null,0,null,0]
[null,49,null,null,null,null,null,null,null,0,null,0]
[null,50,null,null,null,null,null,null,null,0,null,0]
[null,51,null,null,null,null,null,null,null,0,null,0]
[null,52,null,null,null,null,null,null,null,0,null,0]
[null,53,null,null,null,null,null,null,null,0,null,0]
[null,54,null,null,null,null,null,null,null,0,null,0]
[null,55,null,null,null,null,null,null,null,0,null,0]
[null,56,null,null,null,null,null,null,null,0,null,0]
[null,57,null,null,null,null,null,null,null,0,null,0]
[null,58,null,null,null,null,null,null,null,0,null,0]
[null,59,null,null,null,null,null,null,null,0,null,0]
[null,60,null,null,null,null,null,null,null,0,null,0]
[null,61,null,null,null,null,null,null,null,0,null,0]
[null,62,null,null,null,null,null,null,null,0,null,0]
[null,63,null,null,null,null,null,null,null,0,null,0]
[null,64,null,null,null,null,null,null,null,0,null,0]
[null,65,null,null,null,null,null,null,null,0,null,0]
[null,66,null,null,null,null,null,null,null,{"$f":"IF(G76>0,I76*0.7,0)","v":0},null,{"$f":"G76*I76*0.7","v":0}]
[null,67,null,null,null,null,null,null,null,0,null,0]
[null,68,null,null,null,null,null,null,null,0,null,0]
[null,69,null,null,null,null,null,null,null,0,null,0]
[null,70,null,null,null,null,null,null,null,0,null,0]
[null,71,null,null,null,null,null,null,null,0,null,0]
[null,72,null,null,null,null,null,null,null,0,null,0]
[null,73,null,null,null,null,null,null,null,0,null,0]
[null,74,null,null,null,null,null,null,null,0,null,0]
[null,75,null,null,null,null,null,null,null,0,null,0]
[null,76,null,null,null,null,null,null,null,0,null,0]
[null,77,null,null,null,null,null,null,null,0,null,0]
[null,78,null,null,null,null,null,null,null,0,null,0]
[null,79,null,null,null,null,null,null,null,0,null,0]
[null,80,null,null,null,null,null,null,null,0,null,0]
[null,81,null,null,null,null,null,null,null,0,null,0]
[null,82,null,null,null,null,null,null,null,0,null,0]
[null,83,null,null,null,null,null,null,null,0,null,0]
[null,84,null,null,null,null,null,null,null,0,null,0]
[null,85,null,null,null,null,null,null,null,0,null,0]
[null,86,null,null,null,null,null,null,null,0,null,0]
[null,87,null,null,null,null,null,null,null,0,null,0]
[null,88,null,null,null,null,null,null,null,0,null,0]
[null,89,null,null,null,null,null,null,null,0,null,0]
[null,90,null,null,null,null,null,null,null,0,null,0]
[null,91,null,null,null,null,null,null,null,0,null,0]
[null,92,null,null,null,null,null,null,null,0,null,0]
[null,93,null,null,null,null,null,null,null,0,null,0]
[null,94,null,null,null,null,null,null,null,0,null,0]
[null,95,null,null,null,null,null,null,null,0,null,0]
[null,96,null,null,null,null,null,null,null,0,null,0]
[null,97,null,null,null,null,null,null,null,0,null,0]
[null,98,null,null,null,null,null,null,null,0,null,0]
[null,99,null,null,null,null,null,null,null,0,null,0]
[null,100,null,null,null,null,null,null,null,0,null,0]
[null,101,null,null,null,null,null,null,null,0,null,0]
[null,102,null,null,null,null,null,null,null,0,null,0]
[null,103,null,null,null,null,null,null,null,0,null,0]
[null,104,null,null,null,null,null,null,null,0,null,0]
[null,105,null,null,null,null,null,null,null,0,null,0]
[null,106,null,null,null,null,null,null,null,0,null,0]
[null,107,null,null,null,null,null,null,null,0,null,0]
[null,108,null,null,null,null,null,null,null,0,null,0]
[null,109,null,null,null,null,null,null,null,0,null,0]
[null,110,null,null,null,null,null,null,null,0,null,0]
[null,111,null,null,null,null,null,null,null,0,null,0]
[null,112,null,null,null,null,null,null,null,0,null,0]
[null,113,null,null,null,null,null,null,null,0,null,0]
[null,114,null,null,null,null,null,null,null,0,null,0]
[null,115,null,null,null,null,null,null,null,0,null,0]
[null,116,null,null,null,null,null,null,null,0,null,0]
[null,117,null,null,null,null,null,null,null,0,null,0]
[null,118,null,null,null,null,null,null,null,0,null,0]
[null,119,null,null,null,null,null,null,null,0,null,0]
[null,120,null,null,null,null,null,null,null,0,null,0]
[null,121,null,null,null,null,null,null,null,0,null,0]
[null,122,null,null,null,null,null,null,null,0,null,0]
[null,123,null,null,null,null,null,null,null,0,null,0]
[null,124,null,null,null,null,null,null,null,0,null,0]
[null,125,null,null,null,null,null,null,null,0,null,0]
[null,126,null,null,null,null,null,null,null,0,null,0]
[null,127,null,null,null,null,null,null,null,0,null,0]
[null,128,null,null,null,null,null,null,null,0,null,0]
[null,129,null,null,null,null,null,null,null,0,null,0]
[null,130,null,null,null,null,null,null,null,{"$f":"IF(G140>0,I140*0.7,0)","v":0},null,{"$f":"G140*I140*0.7","v":0}]
[null,131,null,null,null,null,null,null,null,0,null,0]
[null,132,null,null,null,null,null,null,null,0,null,0]
[null,133,null,null,null,null,null,null,null,0,null,0]
[null,134,null,null,null,null,null,null,null,0,null,0]
[null,135,null,null,null,null,null,null,null,0,null,0]
[null,136,null,null,null,null,null,null,null,0,null,0]
[null,137,null,null,null,null,null,null,null,0,null,0]
[null,138,null,null,null,null,null,null,null,0,null,0]
[null,139,null,null,null,null,null,null,null,0,null,0]
[null,140,null,null,null,null,null,null,null,0,null,0]
[null,141,null,null,null,null,null,null,null,0,null,0]
[null,142,null,null,null,null,null,null,null,0,null,0]
[null,143,null,null,null,null,null,null,null,0,null,0]
[null,144,null,null,null,null,null,null,null,0,null,0]
[null,145,null,null,null,null,null,null,null,0,null,0]
[null,146,null,null,null,null,null,null,null,0,null,0]
[null,147,null,null,null,null,null,null,null,0,null,0]
[null,148,null,null,null,null,null,null,null,0,null,0]
[null,149,null,null,null,null,null,null,null,0,null,0]
[null,150,null,null,null,null,null,null,null,0,null,0]
[null,null,null,"Summe der geplanten Kurse",{"$f":"SUM(E11:E160)","v":0}]
[null,null,null,"Summen Anlage 2",null,null,null,null,null,null,null,"insgesamt"]
[null,null,null,"kalkulierte Anzahl der Fachkursteilnehmer/innen Anlage 2",null,null,{"$f":"SUM(G11:G160)","v":0},null,null,"Zuschuss",null,{"$f":"SUM(L11:L160)","v":0}]
[null,null,null,null,null,null,null,null,"davon ESF-Mittel",null,null,{"$f":"L163*0.5","v":0}]
[null,null,null,null,null,null,null,null,"davon Landesmittel des Ministeriums \nfür Wirtschaft, Arbeit und Wohnungsbau",null,null,{"$f":"L163*0.5","v":0}]
[null,null,null,null,null,null,null,null,null," + private Kofinanzierung (i.d.R.)",null,{"$f":"L163/70*30","v":0}]
[null,null,null,null,null,null,null,null,null," = Gesamtausgaben",null,{"$f":"L163+L166","v":0}]
[null,null,null,{"$f":"IF((L163+'Anlage 1'!L163)>300000,\"Der Höchstzuschuss pro Weiterbildungsträger und Jahr (12 Monate) liegt bei 300.000 €. Bitte überprüfen Sie Ihre Eingaben.\",\" \")","v":" "}]
[null,null,null,{"$f":"IF((L163+'Anlage 1'!L163)<10000,\"Zuschüsse unter 10.000 € werden nicht bewilligt. Bitte überprüfen Sie Ihre Eingaben.\",\" \")","v":"Zuschüsse unter 10.000 € werden nicht bewilligt. Bitte überprüfen Sie Ihre Eingaben."}]